{"text_format":"3","workbook":"xlsx","n_sheets":6,"sheets":["Početak","Nadzorna ploča","Troškovi i dobit","Izvješće o proračunu","Popisi podataka","Zaokretna tablica kategorija"],"not_rendered":{"charts":3,"defined_names":24,"pivot_tables":2},"read":"whole","date_system":"1900"}

{"sheet":"Početak","index":0,"n_rows":8,"n_cols":2,"rows_kept":8}
[null,"O predlošku"]
[null,"Upotrijebite ovaj predložak da biste stvorili polumjesečni kućni proračun."]
[null,"Radni list Nadzorna ploča sadrži grafikone za mjesečne i godišnje ukupne zbrojeve te tablicu za dvotjedne prihode i rashode."]
[null,"Kategorije unesite u radni list Popisi podataka, a vrijednosti na radne listove Prihod i Rashodi."]
[null,"Osvježite zaokretnu tablicu na radnom listu Proračunsko izvješće."]
[null,"Napomena:"]
[null,"dodatne su upute navedene u stupcu A na svim radnim listovima. Ovaj je tekst namjerno skriven. Da biste uklonili tekst, odaberite stupac A, a zatim odaberite IZBRIŠI. "]
[null,"Da biste saznali više o tablici, pritisnite SHIFT, a zatim F10 unutar tablice pa odaberite mogućnost TABLICA, a potom ZAMJENSKI TEKST. Za zaokretne tablice pritisnite SHIFT pa F10 unutar tablice, odaberite MOGUĆNOSTI ZAOKRETNE TABLICE pa odaberite karticu ZAMJENSKI TEKST."]

{"sheet":"Nadzorna ploča","index":1,"n_rows":12,"n_cols":15,"rows_kept":12,"merged":[[0,1,0,13],[1,2,1,7]]}
["Na ovom radnom listu stvorite nadzornu ploču za mjesečne i godišnje ukupne zbrojeve te dvotjedne prihode i rashode. Upute za korištenje ovog radnog lista nalaze se u ćelijama u ovom stupcu. Naslov ove radne knjige nalazi se u ćeliji zdesna, a naslov radnog lista u ćeliji O1.","Polumjesečni kućni proračun",{"$nulls":12},"NADZORNA PLOČA"]
["Odaberite klizač u ćeliji C2 da biste promijenili mjesec u ćeliji zdesna, a da biste promijenili godinu u ćeliji I2, odaberite klizač u ćeliji J2.",{"$f":"CHOOSE(MonthNumber,\"SIJEČANJ\",\"VELJAČA\",\"OŽUJAK\",\"TRAVANJ\",\"SVIBANJ\",\"LIPANJ\",\"SRPANJ\",\"KOLOVOZ\",\"RUJAN\",\"LISTOPAD\",\"STUDENI\",\"PROSINAC\")","v":"PROSINAC"},12,{"$nulls":5},{"$f":"YEAR(TODAY())","v":2022}]
["Oznaka mjesečnih ukupnih zbrojeva nalazi se u ćeliji zdesna, a oznaka godišnjih ukupnih zbrojeva u ćeliji I3.","MJESEČNI UKUPNI ZBROJEVI",{"$nulls":6},"GODIŠNJI UKUPNI ZBROJEVI"]
["Trakasti grafikon usporedbe ukupnih zbrojeva mjesečnih prihoda i rashoda nalazi se u ćeliji C4, a trakasti grafikon usporedbe ukupnih zbrojeva godišnjih prihoda i rashoda u ćeliji J4. Sljedeća je uputa u ćeliji A8.","PRIHODI",null,{"$f":"MonthlyExpendituresTotals","v":{"v":0,"d":"0 kn"}},{"$nulls":4},"PRIHODI",null,null,{"$f":"AnnualExpendituresTotals","v":{"v":10742,"d":"10,742 kn"}}]
[null,"RASHODI",null,{"$f":"MonthlyIncomeTotals","v":{"v":0,"d":"0 kn"}},{"$nulls":4},"RASHODI",null,null,{"$f":"AnnualIncomeTotals","v":{"v":13200,"d":"13,200 kn"}}]
[]
[]
["Tablica nadzorne ploče, s početkom u ćeliji zdesna, automatski se ažurira.","Kategorija","SIJEČANJ","VELJAČA","OŽUJAK","TRAVANJ","SVIBANJ","LIPANJ","SRPANJ","KOLOVOZ","RUJAN","LISTOPAD","STUDENI","PROSINAC","Minigrafikon"]
[null,"Prihod od 1. do 15. u mjesecu",{"$f":"SUMIFS(Prihod[IZNOS],Prihod[DATUM],\"<=\"&DtMiddle,Prihod[DATUM],\">=\"&DtStart)","v":{"v":0,"d":"0.00 kn"}},{"$f":"SUMIFS(Prihod[IZNOS],Prihod[DATUM],\"<=\"&DtMiddle,Prihod[DATUM],\">=\"&DtStart)","v":{"v":0,"d":"0.00 kn"}},{"$f":"SUMIFS(Prihod[IZNOS],Prihod[DATUM],\"<=\"&DtMiddle,Prihod[DATUM],\">=\"&DtStart)","v":{"v":1300,"d":"1,300.00 kn"}},{"$f":"SUMIFS(Prihod[IZNOS],Prihod[DATUM],\"<=\"&DtMiddle,Prihod[DATUM],\">=\"&DtStart)","v":{"v":2600,"d":"2,600.00 kn"}},{"$f":"SUMIFS(Prihod[IZNOS],Prihod[DATUM],\"<=\"&DtMiddle,Prihod[DATUM],\">=\"&DtStart)","v":{"v":2600,"d":"2,600.00 kn"}},{"$f":"SUMIFS(Prihod[IZNOS],Prihod[DATUM],\"<=\"&DtMiddle,Prihod[DATUM],\">=\"&DtStart)","v":{"v":0,"d":"0.00 kn"}},{"$f":"SUMIFS(Prihod[IZNOS],Prihod[DATUM],\"<=\"&DtMiddle,Prihod[DATUM],\">=\"&DtStart)","v":{"v":0,"d":"0.00 kn"}},{"$f":"SUMIFS(Prihod[IZNOS],Prihod[DATUM],\"<=\"&DtMiddle,Prihod[DATUM],\">=\"&DtStart)","v":{"v":0,"d":"0.00 kn"}},{"$f":"SUMIFS(Prihod[IZNOS],Prihod[DATUM],\"<=\"&DtMiddle,Prihod[DATUM],\">=\"&DtStart)","v":{"v":0,"d":"0.00 kn"}},{"$f":"SUMIFS(Prihod[IZNOS],Prihod[DATUM],\"<=\"&DtMiddle,Prihod[DATUM],\">=\"&DtStart)","v":{"v":0,"d":"0.00 kn"}},{"$f":"SUMIFS(Prihod[IZNOS],Prihod[DATUM],\"<=\"&DtMiddle,Prihod[DATUM],\">=\"&DtStart)","v":{"v":0,"d":"0.00 kn"}},{"$f":"SUMIFS(Prihod[IZNOS],Prihod[DATUM],\"<=\"&DtMiddle,Prihod[DATUM],\">=\"&DtStart)","v":{"v":0,"d":"0.00 kn"}}]
[null,"Prihod od 16. do kraja mjeseca",{"$f":"SUMIFS(Prihod[IZNOS],Prihod[DATUM],\"<=\"&DtEnd,Prihod[DATUM],\">=\"&DtMiddle+1)","v":{"v":0,"d":"0.00 kn"}},{"$f":"SUMIFS(Prihod[IZNOS],Prihod[DATUM],\"<=\"&DtEnd,Prihod[DATUM],\">=\"&DtMiddle+1)","v":{"v":0,"d":"0.00 kn"}},{"$f":"SUMIFS(Prihod[IZNOS],Prihod[DATUM],\"<=\"&DtEnd,Prihod[DATUM],\">=\"&DtMiddle+1)","v":{"v":3100,"d":"3,100.00 kn"}},{"$f":"SUMIFS(Prihod[IZNOS],Prihod[DATUM],\"<=\"&DtEnd,Prihod[DATUM],\">=\"&DtMiddle+1)","v":{"v":3100,"d":"3,100.00 kn"}},{"$f":"SUMIFS(Prihod[IZNOS],Prihod[DATUM],\"<=\"&DtEnd,Prihod[DATUM],\">=\"&DtMiddle+1)","v":{"v":500,"d":"500.00 kn"}},{"$f":"SUMIFS(Prihod[IZNOS],Prihod[DATUM],\"<=\"&DtEnd,Prihod[DATUM],\">=\"&DtMiddle+1)","v":{"v":0,"d":"0.00 kn"}},{"$f":"SUMIFS(Prihod[IZNOS],Prihod[DATUM],\"<=\"&DtEnd,Prihod[DATUM],\">=\"&DtMiddle+1)","v":{"v":0,"d":"0.00 kn"}},{"$f":"SUMIFS(Prihod[IZNOS],Prihod[DATUM],\"<=\"&DtEnd,Prihod[DATUM],\">=\"&DtMiddle+1)","v":{"v":0,"d":"0.00 kn"}},{"$f":"SUMIFS(Prihod[IZNOS],Prihod[DATUM],\"<=\"&DtEnd,Prihod[DATUM],\">=\"&DtMiddle+1)","v":{"v":0,"d":"0.00 kn"}},{"$f":"SUMIFS(Prihod[IZNOS],Prihod[DATUM],\"<=\"&DtEnd,Prihod[DATUM],\">=\"&DtMiddle+1)","v":{"v":0,"d":"0.00 kn"}},{"$f":"SUMIFS(Prihod[IZNOS],Prihod[DATUM],\"<=\"&DtEnd,Prihod[DATUM],\">=\"&DtMiddle+1)","v":{"v":0,"d":"0.00 kn"}},{"$f":"SUMIFS(Prihod[IZNOS],Prihod[DATUM],\"<=\"&DtEnd,Prihod[DATUM],\">=\"&DtMiddle+1)","v":{"v":0,"d":"0.00 kn"}}]
[null,"Potrošnja od 1. do 15. u mjesecu",{"$f":"SUMIFS(Rashodi[IZNOS],Rashodi[DATUM],\"<=\"&DtMiddle+1,Rashodi[DATUM],\">=\"&DtStart)","v":{"v":0,"d":"0.00 kn"}},{"$f":"SUMIFS(Rashodi[IZNOS],Rashodi[DATUM],\"<=\"&DtMiddle+1,Rashodi[DATUM],\">=\"&DtStart)","v":{"v":0,"d":"0.00 kn"}},{"$f":"SUMIFS(Rashodi[IZNOS],Rashodi[DATUM],\"<=\"&DtMiddle+1,Rashodi[DATUM],\">=\"&DtStart)","v":{"v":1225,"d":"1,225.00 kn"}},{"$f":"SUMIFS(Rashodi[IZNOS],Rashodi[DATUM],\"<=\"&DtMiddle+1,Rashodi[DATUM],\">=\"&DtStart)","v":{"v":5150,"d":"5,150.00 kn"}},{"$f":"SUMIFS(Rashodi[IZNOS],Rashodi[DATUM],\"<=\"&DtMiddle+1,Rashodi[DATUM],\">=\"&DtStart)","v":{"v":2792,"d":"2,792.00 kn"}},{"$f":"SUMIFS(Rashodi[IZNOS],Rashodi[DATUM],\"<=\"&DtMiddle+1,Rashodi[DATUM],\">=\"&DtStart)","v":{"v":0,"d":"0.00 kn"}},{"$f":"SUMIFS(Rashodi[IZNOS],Rashodi[DATUM],\"<=\"&DtMiddle+1,Rashodi[DATUM],\">=\"&DtStart)","v":{"v":0,"d":"0.00 kn"}},{"$f":"SUMIFS(Rashodi[IZNOS],Rashodi[DATUM],\"<=\"&DtMiddle+1,Rashodi[DATUM],\">=\"&DtStart)","v":{"v":0,"d":"0.00 kn"}},{"$f":"SUMIFS(Rashodi[IZNOS],Rashodi[DATUM],\"<=\"&DtMiddle+1,Rashodi[DATUM],\">=\"&DtStart)","v":{"v":0,"d":"0.00 kn"}},{"$f":"SUMIFS(Rashodi[IZNOS],Rashodi[DATUM],\"<=\"&DtMiddle+1,Rashodi[DATUM],\">=\"&DtStart)","v":{"v":0,"d":"0.00 kn"}},{"$f":"SUMIFS(Rashodi[IZNOS],Rashodi[DATUM],\"<=\"&DtMiddle+1,Rashodi[DATUM],\">=\"&DtStart)","v":{"v":0,"d":"0.00 kn"}},{"$f":"SUMIFS(Rashodi[IZNOS],Rashodi[DATUM],\"<=\"&DtMiddle+1,Rashodi[DATUM],\">=\"&DtStart)","v":{"v":0,"d":"0.00 kn"}}]
[null,"Potrošnja od 16. do kraja mjeseca",{"$f":"SUMIFS(Rashodi[IZNOS],Rashodi[DATUM],\"<=\"&DtEnd,Rashodi[DATUM],\">=\"&DtMiddle+1)","v":{"v":0,"d":"0.00 kn"}},{"$f":"SUMIFS(Rashodi[IZNOS],Rashodi[DATUM],\"<=\"&DtEnd,Rashodi[DATUM],\">=\"&DtMiddle+1)","v":{"v":0,"d":"0.00 kn"}},{"$f":"SUMIFS(Rashodi[IZNOS],Rashodi[DATUM],\"<=\"&DtEnd,Rashodi[DATUM],\">=\"&DtMiddle+1)","v":{"v":200,"d":"200.00 kn"}},{"$f":"SUMIFS(Rashodi[IZNOS],Rashodi[DATUM],\"<=\"&DtEnd,Rashodi[DATUM],\">=\"&DtMiddle+1)","v":{"v":875,"d":"875.00 kn"}},{"$f":"SUMIFS(Rashodi[IZNOS],Rashodi[DATUM],\"<=\"&DtEnd,Rashodi[DATUM],\">=\"&DtMiddle+1)","v":{"v":500,"d":"500.00 kn"}},{"$f":"SUMIFS(Rashodi[IZNOS],Rashodi[DATUM],\"<=\"&DtEnd,Rashodi[DATUM],\">=\"&DtMiddle+1)","v":{"v":0,"d":"0.00 kn"}},{"$f":"SUMIFS(Rashodi[IZNOS],Rashodi[DATUM],\"<=\"&DtEnd,Rashodi[DATUM],\">=\"&DtMiddle+1)","v":{"v":0,"d":"0.00 kn"}},{"$f":"SUMIFS(Rashodi[IZNOS],Rashodi[DATUM],\"<=\"&DtEnd,Rashodi[DATUM],\">=\"&DtMiddle+1)","v":{"v":0,"d":"0.00 kn"}},{"$f":"SUMIFS(Rashodi[IZNOS],Rashodi[DATUM],\"<=\"&DtEnd,Rashodi[DATUM],\">=\"&DtMiddle+1)","v":{"v":0,"d":"0.00 kn"}},{"$f":"SUMIFS(Rashodi[IZNOS],Rashodi[DATUM],\"<=\"&DtEnd,Rashodi[DATUM],\">=\"&DtMiddle+1)","v":{"v":0,"d":"0.00 kn"}},{"$f":"SUMIFS(Rashodi[IZNOS],Rashodi[DATUM],\"<=\"&DtEnd,Rashodi[DATUM],\">=\"&DtMiddle+1)","v":{"v":0,"d":"0.00 kn"}},{"$f":"SUMIFS(Rashodi[IZNOS],Rashodi[DATUM],\"<=\"&DtEnd,Rashodi[DATUM],\">=\"&DtMiddle+1)","v":{"v":0,"d":"0.00 kn"}}]

{"sheet":"Troškovi i dobit","index":2,"n_rows":36,"n_cols":9,"rows_kept":36,"merged":[[0,1,0,6],[0,7,0,8]]}
["Na ovom radnom listu stvorite popis prihoda i rashoda. Upute za korištenje ovog radnog lista nalaze se u ćelijama u ovom stupcu. Naslov radne knjige nalazi se u ćeliji zdesna, a naslov radnog lista u ćeliji H1.",{"$f":"Semi_Monthly_Home_Budget_Title","v":"Polumjesečni kućni proračun"},{"$nulls":5},"PRIHODI I RASHODI"]
["Oznaka prihoda nalazi se u ćeliji zdesna, a oznaka rashoda u ćeliji F2.","PRIHODI",{"$nulls":3},"RASHODI"]
["Unesite pojedinosti u tablicu Prihod, s početkom u ćeliji zdesna, i tablicu Rashodi, s početkom u ćeliji F3.","DATUM","OPIS","IZNOS",null,"DATUM","KATEGORIJA","OPIS","IZNOS"]
[null,{"$f":"TODAY()","v":"2022-05-19"},"Bonus",{"v":500,"d":"500.00 kn"},null,{"$f":"TODAY()","v":"2022-05-19"},"Zdravstvo","Osiguranje",{"v":500,"d":"500.00 kn"}]
[null,{"$f":"TODAY()-14","v":"2022-05-05"},"Davidova plaća",{"v":1300,"d":"1,300.00 kn"},null,{"$f":"TODAY()-7","v":"2022-05-12"},"Kućanstvo","Kredit",{"v":1000,"d":"1,000.00 kn"}]
[null,{"$f":"TODAY()-14","v":"2022-05-05"},"Lucijina plaća",{"v":1300,"d":"1,300.00 kn"},null,"2022-05-12","Kućanstvo","Struja",{"v":100,"d":"100.00 kn"}]
[null,{"$f":"TODAY()-28","v":"2022-04-21"},"Davidova plaća",{"v":1500,"d":"1,500.00 kn"},null,"2022-05-12","Kućanstvo","Voda i odvodnja",{"v":50,"d":"50.00 kn"}]
[null,{"$f":"TODAY()-28","v":"2022-04-21"},"Lucijina plaća",{"v":1600,"d":"1,600.00 kn"},null,"2022-05-12","Kućanstvo","Smeće",{"v":25,"d":"25.00 kn"}]
[null,{"$f":"TODAY()-42","v":"2022-04-07"},"Davidova plaća",{"v":1300,"d":"1,300.00 kn"},null,"2022-05-12","Kućanstvo","Mobilni telefon",{"v":100,"d":"100.00 kn"}]
[null,{"$f":"TODAY()-42","v":"2022-04-07"},"Lucijina plaća",{"v":1300,"d":"1,300.00 kn"},null,"2022-05-12","Kućanstvo","Mobilni telefon",{"v":30,"d":"30.00 kn"}]
[null,{"$f":"TODAY()-56","v":"2022-03-24"},"Davidova plaća",{"v":1500,"d":"1,500.00 kn"},null,"2022-05-12","Kućanstvo","Kredit",{"v":50,"d":"50.00 kn"}]
[null,{"$f":"TODAY()-56","v":"2022-03-24"},"Lucijina plaća",{"v":1600,"d":"1,600.00 kn"},null,"2022-05-12","Kućanstvo","Mobilni telefon",{"v":50,"d":"50.00 kn"}]
[null,{"$f":"TODAY()-70","v":"2022-03-10"},"Davidova plaća",{"v":1300,"d":"1,300.00 kn"},null,{"$f":"TODAY()-7","v":"2022-05-12"},"Kućanstvo","Mobilni telefon",{"v":25,"d":"25.00 kn"}]
[{"$nulls":5},{"$f":"TODAY()-8","v":"2022-05-11"},"Kućanstvo","Struja",{"v":100,"d":"100.00 kn"}]
[{"$nulls":5},{"$f":"TODAY()-9","v":"2022-05-10"},"Zabava","Filmovi",{"v":37,"d":"37.00 kn"}]
[{"$nulls":5},{"$f":"TODAY()-10","v":"2022-05-09"},"Hrana","Namirnice",{"v":350,"d":"350.00 kn"}]
[{"$nulls":5},{"$f":"TODAY()-11","v":"2022-05-08"},"Hrana","Restorani",{"v":75,"d":"75.00 kn"}]
[{"$nulls":5},{"$f":"TODAY()-12","v":"2022-05-07"},"Djeca","Novac za užinu",{"v":150,"d":"150.00 kn"}]
[{"$nulls":5},{"$f":"TODAY()-13","v":"2022-05-06"},"Investicijski računi","Štednja",{"v":250,"d":"250.00 kn"}]
[{"$nulls":5},{"$f":"TODAY()-14","v":"2022-05-05"},"Investicijski računi","Investicijski račun",{"v":250,"d":"250.00 kn"}]
[{"$nulls":5},{"$f":"TODAY()-15","v":"2022-05-04"},"Osobne potrebe","Zdravlje/teretana",{"v":100,"d":"100.00 kn"}]
[{"$nulls":5},{"$f":"TODAY()-16","v":"2022-05-03"},"Kućni ljubimci","Hrana",{"v":50,"d":"50.00 kn"}]
[{"$nulls":5},{"$f":"TODAY()-20","v":"2022-04-29"},"Kućni ljubimci","Njega ljubimaca",{"v":50,"d":"50.00 kn"}]
[{"$nulls":5},{"$f":"TODAY()-20","v":"2022-04-29"},"Kućni ljubimci","Ostalo",{"v":50,"d":"50.00 kn"}]
[{"$nulls":5},{"$f":"TODAY()-25","v":"2022-04-24"},"Prijevoz","Otplata automobila 1 ",{"v":300,"d":"300.00 kn"}]
[{"$nulls":5},{"$f":"TODAY()-25","v":"2022-04-24"},"Prijevoz","Otplata automobila 2 ",{"v":350,"d":"350.00 kn"}]
[{"$nulls":5},{"$f":"TODAY()-25","v":"2022-04-24"},"Prijevoz","Osiguranje automobila",{"v":50,"d":"50.00 kn"}]
[{"$nulls":5},{"$f":"TODAY()-30","v":"2022-04-19"},"Prijevoz","Gorivo",{"v":50,"d":"50.00 kn"}]
[{"$nulls":5},{"$f":"TODAY()-31","v":"2022-04-18"},"Prijevoz","Gorivo",{"v":25,"d":"25.00 kn"}]
[{"$nulls":5},{"$f":"TODAY()-42","v":"2022-04-07"},"Prijevoz","Otplata automobila 2 ",{"v":150,"d":"150.00 kn"}]
[{"$nulls":5},{"$f":"TODAY()-45","v":"2022-04-04"},"Kućanstvo","Kredit",{"v":5000,"d":"5,000.00 kn"}]
[{"$nulls":5},{"$f":"TODAY()-50","v":"2022-03-30"},"Kućanstvo","Struja",{"v":200,"d":"200.00 kn"}]
[{"$nulls":5},{"$f":"TODAY()-65","v":"2022-03-15"},"Kućanstvo","Mobilni telefon",{"v":100,"d":"100.00 kn"}]
[{"$nulls":5},{"$f":"TODAY()-70","v":"2022-03-10"},"Kućanstvo","Smeće",{"v":50,"d":"50.00 kn"}]
[{"$nulls":5},{"$f":"TODAY()-75","v":"2022-03-05"},"Kućanstvo","Kredit",{"v":1000,"d":"1,000.00 kn"}]
[{"$nulls":5},{"$f":"TODAY()-78","v":"2022-03-02"},"Zabava","Filmovi",{"v":75,"d":"75.00 kn"}]

{"sheet":"Izvješće o proračunu","index":3,"n_rows":26,"n_cols":6,"rows_kept":26,"merged":[[0,1,0,4],[1,1,1,3],[4,3,4,5]]}
["Na ovom radnom listu stvorite izvješće o proračunu. Upute za korištenje ovog radnog lista nalaze se u ćelijama u ovom stupcu. Naslov radne knjige nalazi se u ćeliji zdesna, a naslov radnog lista u ćeliji F1.",{"$f":"Semi_Monthly_Home_Budget_Title","v":"Polumjesečni kućni proračun"},{"$nulls":3},"IZVJEŠĆE O PRORAČUNU"]
["Odaberite Godine, Tromjesečja, Mjeseci ili Dani pa pomoću klizača u ćeliji zdesna načinite zaokretnu tablicu Rashod za odabrano razdoblje. Rezač Kategorija za filtriranje podataka zaokretne tablice nalazi se u ćeliji E2, a rezač Opis u ćeliji F2.","Vremenska crta za filtriranje nalazi se u ovoj ćeliji.",null,null,"U ovoj se ćeliji nalazi rezač za filtriranje podataka zaokretne tablice na temelju kategorije.","U ovoj se ćeliji nalazi rezač za filtriranje podataka zaokretne tablice na temelju opisa."]
["U ćeliji zdesna nalazi se savjet.","Pritisnite Shift + F10 u zaokretnoj tablici Rashodi, a zatim odaberite Osvježi da biste ažurirali podatke na tom listu ili odaberite Osvježi na kartici Analiza."]
["Oznaka Rashodi nalazi se u ćeliji zdesna.","RASHODI"]
["Zaokretna tablica koja prikazuje rashode počinje u ćeliji zdesna. Oznaka Ukupni zbrojevi kategorija nalazi se u ćeliji D4.","Natpisi redaka","Zbroj od IZNOS","UKUPNI ZBROJOVI KATEGORIJA"]
["Tortni grafikon usporedbe ukupnih zbrojeva za svaku od kategorija nalazi se u ćeliji D6.","Otplata automobila 1 ",{"v":300,"d":"300.00 kn"}]
[null,"Otplata automobila 2 ",{"v":500,"d":"500.00 kn"}]
[null,"Filmovi",{"v":112,"d":"112.00 kn"}]
[null,"Gorivo",{"v":75,"d":"75.00 kn"}]
[null,"Hrana",{"v":50,"d":"50.00 kn"}]
[null,"Investicijski račun",{"v":250,"d":"250.00 kn"}]
[null,"Kredit",{"v":7050,"d":"7,050.00 kn"}]
[null,"Mobilni telefon",{"v":305,"d":"305.00 kn"}]
[null,"Namirnice",{"v":350,"d":"350.00 kn"}]
[null,"Novac za užinu",{"v":150,"d":"150.00 kn"}]
[null,"Njega ljubimaca",{"v":50,"d":"50.00 kn"}]
[null,"Osiguranje",{"v":500,"d":"500.00 kn"}]
[null,"Osiguranje automobila",{"v":50,"d":"50.00 kn"}]
[null,"Ostalo",{"v":50,"d":"50.00 kn"}]
[null,"Restorani",{"v":75,"d":"75.00 kn"}]
[null,"Smeće",{"v":75,"d":"75.00 kn"}]
[null,"Struja",{"v":400,"d":"400.00 kn"}]
[null,"Štednja",{"v":250,"d":"250.00 kn"}]
[null,"Voda i odvodnja",{"v":50,"d":"50.00 kn"}]
[null,"Zdravlje/teretana",{"v":100,"d":"100.00 kn"}]
[null,"Ukupni zbroj",{"v":10742,"d":"10,742.00 kn"}]

{"sheet":"Popisi podataka","index":4,"n_rows":8,"n_cols":13,"rows_kept":8,"merged":[[0,1,0,11]]}
["Na ovom radnom listu unesite podatke za kategorije da biste popunili padajuće popise u tablici Rashodi na radnom listu Rashodi i prihodi. Izmijenite nazive ili opise kategorija ispod svake kategorije da biste ažurirali popise. Upute za korištenje ovog radnog lista nalaze se u ćelijama u ovom stupcu. Naslov radne knjige nalazi se u ćeliji zdesna, a naslov radnog lista u ćeliji M1.",{"$f":"Semi_Monthly_Home_Budget_Title","v":"Polumjesečni kućni proračun"},{"$nulls":10},"POPISI PODATAKA"]
["U ćeliji zdesna nalazi se savjet.","POSTAVLJANJE         Podaci za kategorije u nastavku popunjavaju padajuće popise u tablici Rashodi na listu Rashodi i prihod. Izmijenite nazive ili opise kategorija ispod svake kategorije da biste ažurirali popise."]
["Unesite ili izmijenite nazive ili opise kategorija ispod svake kategorije u tablici počevši od ćelije zdesna.","Kućanstvo","Zabava","Hrana","Darovi/donacije","Djeca","Investicijski računi","Zdravstvo","Ostalo","Osobne potrebe","Kućni ljubimci","Porezi / pravni troškovi","Prijevoz"]
[null,"Kredit","Filmovi","Namirnice","Dobrotvorna udruga 1","Odjeća","IRA","Ordinacija/klinika","Ostalo","Odjeća","Hrana","Savezni","Otplata automobila 1 "]
[null,"Struja","Video/filmovi","Restorani","Dobrotvorna udruga 2","Igračke/igre","Štednja","Osiguranje","Pristojbe tvrtke ili ustanove","Frizura/manikura","Potrepštine","Državni","Otplata automobila 2 "]
[null,"Voda i odvodnja","Glazba",null,"Dobrotvorna udruga 3","Novac za užinu","Tekući",null,null,"Kemijsko čišćenje","Zdravstvo","Lokalni","Osiguranje automobila"]
[null,"Smeće","Koncerti/kazalište",null,"Dar","Pristojbe/naknade","Mirovina",null,null,"Zdravlje/teretana","Njega ljubimaca","Ostalo","Tehnički pregled / registracija"]
[null,"Mobilni telefon","Sportski događaji",null,null,"Školski pribor","Investicijski račun",null,null,"Kupnja","Ostalo","Odvjetnik","Gorivo"]

{"sheet":"Zaokretna tablica kategorija","index":5,"n_rows":13,"n_cols":13,"rows_kept":13,"hidden":true}
[null,"Polumjesečni kućni proračun",{"$nulls":10},"ZAOKRETNA TABLICA KATEGORIJA"]
[null,"Ta je zaokretna tablica izvor podataka zaokretnog grafikona ukupnih zbrojeva kategorija u izvješću o proračunu. "]
[null,"Natpisi redaka","Zbroj od IZNOS"]
[null,"Djeca",{"v":150,"d":"150 kn"}]
[null,"Hrana",{"v":425,"d":"425 kn"}]
[null,"Investicijski računi",{"v":500,"d":"500 kn"}]
[null,"Kućanstvo",{"v":7880,"d":"7,880 kn"}]
[null,"Kućni ljubimci",{"v":150,"d":"150 kn"}]
[null,"Osobne potrebe",{"v":100,"d":"100 kn"}]
[null,"Prijevoz",{"v":925,"d":"925 kn"}]
[null,"Zabava",{"v":112,"d":"112 kn"}]
[null,"Zdravstvo",{"v":500,"d":"500 kn"}]
[null,"Ukupni zbroj",{"v":10742,"d":"10,742 kn"}]